[Event "Titled Tuesday Blitz July 05 Late 2022"]
[White "Toncheva, Nadya"]
[Black "Noboa Silva, Kevin"]
[WhiteFideId "2924056"]
[BlackFideId "3618471"]
[WhiteElo "1888"]
[BlackElo "2172"]
[Result "0-1"]
[Round "08"]
[TimeControl "180+1"]
[Date "2022.07.06"]
[WhiteClock "0:00:02"]
[BlackClock "0:00:12"]

1. e4 {[%clk 0:03:00]}  e6 {[%clk 0:02:56]} 2. d4 {[%clk 0:03:00]}  d5 {[%clk 0:02:57]} 3. Nd2 {[%clk 0:03:01]}  a6 {[%clk 0:02:56]} 4. Ngf3 {[%clk 0:02:59]}  c5 {[%clk 0:02:56]} 5. exd5 {[%clk 0:02:56]}  exd5 {[%clk 0:02:57]} 6. dxc5 {[%clk 0:02:55]}  Bxc5 {[%clk 0:02:56]} 7. Bd3 {[%clk 0:02:56]}  Nf6 {[%clk 0:02:56]} 8. O-O {[%clk 0:02:56]}  O-O {[%clk 0:02:57]} 9. Re1 {[%clk 0:02:57]}  Nc6 {[%clk 0:02:57]} 10. Nb3 {[%clk 0:02:57]}  Bd6 {[%clk 0:02:55]} 11. h3 {[%clk 0:02:55]}  h6 {[%clk 0:02:54]} 12. Be3 {[%clk 0:02:55]}  Re8 {[%clk 0:02:54]} 13. Nbd4 {[%clk 0:02:54]}  Bc7 {[%clk 0:02:52]} 14. c3 {[%clk 0:02:47]}  Qd6 {[%clk 0:02:51]} 15. Qc2 {[%clk 0:02:42]}  Bd7 {[%clk 0:02:51]} 16. Bf5 {[%clk 0:02:37]}  Ne4 {[%clk 0:02:44]} 17. Bxd7 {[%clk 0:02:29]}  Qxd7 {[%clk 0:02:43]} 18. Rad1 {[%clk 0:02:17]}  Rad8 {[%clk 0:02:43]} 19. Nxc6 {[%clk 0:01:55]}  bxc6 {[%clk 0:02:41]} 20. Qa4 {[%clk 0:01:53]}  Qc8 {[%clk 0:02:39]} 21. c4 {[%clk 0:01:43]}  Qb7 {[%clk 0:02:36]} 22. cxd5 {[%clk 0:01:23]}  cxd5 {[%clk 0:02:34]} 23. Rc1 {[%clk 0:01:13]}  Bb8 {[%clk 0:02:21]} 24. Bd4 {[%clk 0:01:02]}  Re6 {[%clk 0:02:16]} 25. Rc2 {[%clk 0:00:43]}  Rde8 {[%clk 0:02:13]} 26. Rec1 {[%clk 0:00:42]}  Bf4 {[%clk 0:02:10]} 27. Rd1 {[%clk 0:00:36]}  Nd6 {[%clk 0:02:04]} 28. Qc6 {[%clk 0:00:32]}  Qb4 {[%clk 0:01:43]} 29. g3 {[%clk 0:00:16]}  Rc8 {[%clk 0:01:27]} 30. Qxc8+ {[%clk 0:00:13]}  Nxc8 {[%clk 0:01:27]} 31. Rxc8+ {[%clk 0:00:14]}  Kh7 {[%clk 0:01:28]} 32. gxf4 {[%clk 0:00:13]}  Rg6+ {[%clk 0:01:23]} 33. Kh2 {[%clk 0:00:12]}  Qa4 {[%clk 0:01:16]} 34. Re1 {[%clk 0:00:10]}  Re6 {[%clk 0:01:07]} 35. Rg1 {[%clk 0:00:08]}  Rg6 {[%clk 0:00:59]} 36. Re1 {[%clk 0:00:04]}  Rc6 {[%clk 0:00:35]} 37. Ra8 {[%clk 0:00:02]}  Qxa2 {[%clk 0:00:29]} 38. Ree8 {[%clk 0:00:02]}  Re6 {[%clk 0:00:20]} 39. Rh8+ {[%clk 0:00:01]}  Kg6 {[%clk 0:00:20]} 40. Nh4+ {[%clk 0:00:02]}  Kh5 {[%clk 0:00:20]} 41. Rag8 {[%clk 0:00:02]}  Qc4 {[%clk 0:00:16]} 42. Be3 {[%clk 0:00:01]}  Rg6 {[%clk 0:00:14]} 43. Nf3 {[%clk 0:00:01]}  Qe4 {[%clk 0:00:13]} 44. Ne5 {[%clk 0:00:02]}  Qg2# {[%clk 0:00:12]} 0-1


[Site "https://www.chess.com"]

[Event "Titled Tuesday Blitz July 05 Late 2022"]
[White "Zhou, Qiyu"]
[Black "Mikhalsky, Vladimir"]
[WhiteFideId "505161"]
[BlackFideId "14144352"]
[WhiteElo "1925"]
[BlackElo "2301"]
[Result "0-1"]
[Round "08"]
[TimeControl "180+1"]
[Date "2022.07.06"]
[WhiteClock "0:00:09"]
[BlackClock "0:00:16"]

1. e4 {[%clk 0:03:00]}  g6 {[%clk 0:02:57]} 2. d4 {[%clk 0:03:00]}  Bg7 {[%clk 0:02:56]} 3. Nc3 {[%clk 0:03:01]}  d6 {[%clk 0:02:57]} 4. Be3 {[%clk 0:03:01]}  a6 {[%clk 0:02:56]} 5. f3 {[%clk 0:03:00]}  b5 {[%clk 0:02:55]} 6. Qd2 {[%clk 0:03:00]}  b4 {[%clk 0:02:47]} 7. Nce2 {[%clk 0:02:58]}  c5 {[%clk 0:02:45]} 8. c3 {[%clk 0:02:53]}  bxc3 {[%clk 0:02:45]} 9. bxc3 {[%clk 0:02:54]}  cxd4 {[%clk 0:02:37]} 10. cxd4 {[%clk 0:02:55]}  Nc6 {[%clk 0:02:36]} 11. Nc3 {[%clk 0:02:49]}  Nf6 {[%clk 0:02:32]} 12. Bc4 {[%clk 0:02:39]}  O-O {[%clk 0:02:29]} 13. Nge2 {[%clk 0:02:39]}  Na5 {[%clk 0:02:18]} 14. Bd3 {[%clk 0:02:37]}  Qc7 {[%clk 0:02:15]} 15. O-O {[%clk 0:02:35]}  Nc4 {[%clk 0:02:14]} 16. Bxc4 {[%clk 0:02:34]}  Qxc4 {[%clk 0:02:14]} 17. Rfc1 {[%clk 0:02:33]}  Qe6 {[%clk 0:02:03]} 18. Nf4 {[%clk 0:02:30]}  Qd7 {[%clk 0:02:03]} 19. Ncd5 {[%clk 0:02:28]}  Nxd5 {[%clk 0:02:02]} 20. Nxd5 {[%clk 0:02:29]}  Ra7 {[%clk 0:01:51]} 21. Rc2 {[%clk 0:02:13]}  e6 {[%clk 0:01:22]} 22. Nb6 {[%clk 0:02:04]}  Qb7 {[%clk 0:01:22]} 23. Rb1 {[%clk 0:02:02]}  Bd7 {[%clk 0:01:17]} 24. Rb3 {[%clk 0:01:42]}  Bb5 {[%clk 0:01:10]} 25. d5 {[%clk 0:01:38]}  exd5 {[%clk 0:01:03]} 26. Nxd5 {[%clk 0:01:30]}  Rc8 {[%clk 0:01:00]} 27. Rxc8+ {[%clk 0:01:17]}  Qxc8 {[%clk 0:01:00]} 28. Bxa7 {[%clk 0:01:18]}  Qc4 {[%clk 0:00:47]} 29. Qe1 {[%clk 0:01:00]}  Qc2 {[%clk 0:00:39]} 30. Qb1 {[%clk 0:00:35]}  Qe2 {[%clk 0:00:37]} 31. Rb2 {[%clk 0:00:32]}  Bxb2 {[%clk 0:00:33]} 32. Bf2 {[%clk 0:00:28]}  Be5 {[%clk 0:00:31]} 33. f4 {[%clk 0:00:27]}  Bg7 {[%clk 0:00:30]} 34. Qe1 {[%clk 0:00:24]}  Qxa2 {[%clk 0:00:28]} 35. Ne7+ {[%clk 0:00:22]}  Kh8 {[%clk 0:00:28]} 36. e5 {[%clk 0:00:22]}  dxe5 {[%clk 0:00:27]} 37. fxe5 {[%clk 0:00:23]}  Qe6 {[%clk 0:00:27]} 38. Bc5 {[%clk 0:00:20]}  Qxe5 {[%clk 0:00:26]} 39. Qxe5 {[%clk 0:00:20]}  Bxe5 {[%clk 0:00:27]} 40. Nc8 {[%clk 0:00:20]}  Kg7 {[%clk 0:00:26]} 41. Nb6 {[%clk 0:00:20]}  Bc7 {[%clk 0:00:25]} 42. Nd5 {[%clk 0:00:20]}  Bd8 {[%clk 0:00:25]} 43. Nc3 {[%clk 0:00:19]}  Bc6 {[%clk 0:00:24]} 44. Kf2 {[%clk 0:00:18]}  a5 {[%clk 0:00:21]} 45. Ke3 {[%clk 0:00:18]}  a4 {[%clk 0:00:21]} 46. Ba3 {[%clk 0:00:17]}  Ba5 {[%clk 0:00:19]} 47. Bb2 {[%clk 0:00:12]}  Kg8 {[%clk 0:00:19]} 48. g3 {[%clk 0:00:12]}  a3 {[%clk 0:00:18]} 49. Ba1 {[%clk 0:00:12]}  Bb4 {[%clk 0:00:18]} 50. Na2 {[%clk 0:00:11]}  Bc5+ {[%clk 0:00:18]} 51. Kf4 {[%clk 0:00:11]}  Bd6+ {[%clk 0:00:18]} 52. Ke3 {[%clk 0:00:11]}  Bb5 {[%clk 0:00:17]} 53. Nc3 {[%clk 0:00:11]}  Bc6 {[%clk 0:00:17]} 54. Ne2 {[%clk 0:00:10]}  Bd5 {[%clk 0:00:16]} 55. Nd4 {[%clk 0:00:10]}  Be6 {[%clk 0:00:16]} 56. Nc6 {[%clk 0:00:09]}  Bc5+ {[%clk 0:00:16]} 57. Kf3 {[%clk 0:00:09]}  Bd5+ {[%clk 0:00:16]} 0-1


[Site "https://www.chess.com"]

[Event "Titled Tuesday Blitz July 05 Late 2022"]
[White "Aggelis, Nikolaos"]
[Black "Silva, Miguel Antonio Neto"]
[WhiteFideId "4213220"]
[BlackFideId "1911929"]
[WhiteElo "2154"]
[BlackElo "2223"]
[Result "1/2-1/2"]
[Round "09"]
[TimeControl "180+1"]
[Date "2022.07.06"]
[WhiteClock "0:00:02"]
[BlackClock "0:00:19"]

1. Nf3 {[%clk 0:03:00]}  d5 {[%clk 0:02:59]} 2. g3 {[%clk 0:02:56]}  Nf6 {[%clk 0:02:59]} 3. Bg2 {[%clk 0:02:53]}  e6 {[%clk 0:02:59]} 4. d4 {[%clk 0:02:50]}  Be7 {[%clk 0:02:59]} 5. O-O {[%clk 0:02:48]}  O-O {[%clk 0:02:59]} 6. c4 {[%clk 0:02:48]}  dxc4 {[%clk 0:02:59]} 7. Na3 {[%clk 0:02:46]}  c5 {[%clk 0:02:39]} 8. Nxc4 {[%clk 0:02:40]}  Nc6 {[%clk 0:02:39]} 9. dxc5 {[%clk 0:02:37]}  Qxd1 {[%clk 0:02:36]} 10. Rxd1 {[%clk 0:02:36]}  Bxc5 {[%clk 0:02:37]} 11. Nfe5 {[%clk 0:02:28]}  Nxe5 {[%clk 0:02:21]} 12. Nxe5 {[%clk 0:02:29]}  h6 {[%clk 0:02:02]} 13. b3 {[%clk 0:02:14]}  a5 {[%clk 0:01:44]} 14. Bb2 {[%clk 0:02:12]}  a4 {[%clk 0:01:44]} 15. Rac1 {[%clk 0:02:07]}  Be7 {[%clk 0:01:40]} 16. Rc7 {[%clk 0:02:02]}  Bd8 {[%clk 0:01:38]} 17. Bxb7 {[%clk 0:01:56]}  Bxc7 {[%clk 0:01:29]} 18. Bxa8 {[%clk 0:01:56]}  Ba6 {[%clk 0:01:19]} 19. Bf3 {[%clk 0:01:47]}  axb3 {[%clk 0:01:14]} 20. axb3 {[%clk 0:01:45]}  Rb8 {[%clk 0:01:13]} 21. Nc6 {[%clk 0:01:18]}  Rxb3 {[%clk 0:01:04]} 22. Bxf6 {[%clk 0:01:16]}  gxf6 {[%clk 0:01:03]} 23. Rd7 {[%clk 0:01:15]}  Be5 {[%clk 0:00:53]} 24. Nd8 {[%clk 0:00:57]}  Rb2 {[%clk 0:00:40]} 25. Nxf7 {[%clk 0:00:39]}  Bxe2 {[%clk 0:00:39]} 26. Nxh6+ {[%clk 0:00:35]}  Kf8 {[%clk 0:00:39]} 27. Bxe2 {[%clk 0:00:25]}  Rxe2 {[%clk 0:00:38]} 28. h4 {[%clk 0:00:20]}  Ke8 {[%clk 0:00:37]} 29. Rd3 {[%clk 0:00:16]}  Kf8 {[%clk 0:00:36]} 30. Ng4 {[%clk 0:00:15]}  Bb2 {[%clk 0:00:34]} 31. Rd7 {[%clk 0:00:15]}  Rc2 {[%clk 0:00:32]} 32. Kg2 {[%clk 0:00:14]}  f5 {[%clk 0:00:32]} 33. Ne3 {[%clk 0:00:13]}  Rc6 {[%clk 0:00:28]} 34. Kf3 {[%clk 0:00:13]}  Bc1 {[%clk 0:00:28]} 35. h5 {[%clk 0:00:13]}  Bxe3 {[%clk 0:00:27]} 36. Kxe3 {[%clk 0:00:12]}  Kg8 {[%clk 0:00:28]} 37. Kf4 {[%clk 0:00:12]}  Rc2 {[%clk 0:00:27]} 38. f3 {[%clk 0:00:12]}  Rc3 {[%clk 0:00:28]} 39. h6 {[%clk 0:00:12]}  Kh8 {[%clk 0:00:27]} 40. Re7 {[%clk 0:00:12]}  Rc6 {[%clk 0:00:22]} 41. Kg5 {[%clk 0:00:12]}  Rc3 {[%clk 0:00:20]} 42. Kg6 {[%clk 0:00:11]}  Rc8 {[%clk 0:00:19]} 43. Rxe6 {[%clk 0:00:11]}  Rg8+ {[%clk 0:00:20]} 44. Kxf5 {[%clk 0:00:06]}  Rxg3 {[%clk 0:00:20]} 45. f4 {[%clk 0:00:06]}  Kh7 {[%clk 0:00:19]} 46. Ke5 {[%clk 0:00:05]}  Re3+ {[%clk 0:00:18]} 47. Kd6 {[%clk 0:00:04]}  Rf3 {[%clk 0:00:19]} 48. Ke5 {[%clk 0:00:04]}  Re3+ {[%clk 0:00:18]} 49. Kf5 {[%clk 0:00:05]}  Rf3 {[%clk 0:00:19]} 50. Kg4 {[%clk 0:00:05]}  Rf1 {[%clk 0:00:19]} 51. f5 {[%clk 0:00:04]}  Rg1+ {[%clk 0:00:19]} 52. Kf4 {[%clk 0:00:05]}  Rf1+ {[%clk 0:00:19]} 53. Ke5 {[%clk 0:00:05]}  Re1+ {[%clk 0:00:19]} 54. Kd6 {[%clk 0:00:05]}  Rf1 {[%clk 0:00:18]} 55. f6 {[%clk 0:00:05]}  Kxh6 {[%clk 0:00:18]} 56. f7+ {[%clk 0:00:04]}  Kg7 {[%clk 0:00:18]} 57. Re7 {[%clk 0:00:03]}  Rf6+ {[%clk 0:00:17]} 58. Kd7 {[%clk 0:00:03]}  Rxf7 {[%clk 0:00:18]} 59. Rxf7+ {[%clk 0:00:02]}  Kxf7 {[%clk 0:00:19]} 1/2-1/2


[Site "https://www.chess.com"]

[Event "Titled Tuesday Blitz July 05 Late 2022"]
[White "Andreikin, Dmitry"]
[Black "Hakobyan, Aram"]
[WhiteFideId "4158814"]
[BlackFideId "13306677"]
[WhiteElo "2736"]
[BlackElo "2557"]
[Result "1-0"]
[Round "09"]
[TimeControl "180+1"]
[Date "2022.07.05"]
[WhiteClock "0:00:05"]
[BlackClock "0:00:04"]

1. d4 {[%clk 0:03:00]}  Nf6 {[%clk 0:02:59]} 2. c4 {[%clk 0:03:01]}  e6 {[%clk 0:02:59]} 3. Nc3 {[%clk 0:03:00]}  Bb4 {[%clk 0:02:59]} 4. Nf3 {[%clk 0:03:01]}  d5 {[%clk 0:02:57]} 5. Qa4+ {[%clk 0:03:00]}  Nc6 {[%clk 0:02:57]} 6. a3 {[%clk 0:03:01]}  Bxc3+ {[%clk 0:02:56]} 7. bxc3 {[%clk 0:03:02]}  Ne4 {[%clk 0:02:57]} 8. e3 {[%clk 0:03:01]}  Nxc3 {[%clk 0:02:57]} 9. Qc2 {[%clk 0:03:01]}  Ne4 {[%clk 0:02:58]} 10. Bd3 {[%clk 0:03:01]}  Nd6 {[%clk 0:02:57]} 11. Nd2 {[%clk 0:03:00]}  h6 {[%clk 0:02:46]} 12. O-O {[%clk 0:02:57]}  Qd7 {[%clk 0:02:33]} 13. Rb1 {[%clk 0:02:46]}  O-O {[%clk 0:02:21]} 14. a4 {[%clk 0:02:44]}  b6 {[%clk 0:02:11]} 15. Ba3 {[%clk 0:02:42]}  Ba6 {[%clk 0:02:03]} 16. Rfc1 {[%clk 0:02:37]}  Ne7 {[%clk 0:01:45]} 17. c5 {[%clk 0:01:29]}  Bxd3 {[%clk 0:01:46]} 18. Qxd3 {[%clk 0:01:28]}  Ndf5 {[%clk 0:01:41]} 19. Nf3 {[%clk 0:01:25]}  h5 {[%clk 0:01:12]} 20. Ne5 {[%clk 0:01:20]}  Qd8 {[%clk 0:01:06]} 21. h3 {[%clk 0:01:05]}  h4 {[%clk 0:00:56]} 22. a5 {[%clk 0:01:02]}  bxa5 {[%clk 0:00:53]} 23. c6 {[%clk 0:01:02]}  Re8 {[%clk 0:00:49]} 24. Qa6 {[%clk 0:00:58]}  Rb8 {[%clk 0:00:48]} 25. Rb7 {[%clk 0:00:55]}  Nd6 {[%clk 0:00:48]} 26. Rcb1 {[%clk 0:00:52]}  Nxb7 {[%clk 0:00:45]} 27. cxb7 {[%clk 0:00:51]}  f6 {[%clk 0:00:36]} 28. Bxe7 {[%clk 0:00:50]}  Qxe7 {[%clk 0:00:36]} 29. Nc6 {[%clk 0:00:50]}  Qd6 {[%clk 0:00:34]} 30. Nxb8 {[%clk 0:00:48]}  Rxb8 {[%clk 0:00:35]} 31. Qxa7 {[%clk 0:00:44]}  c6 {[%clk 0:00:33]} 32. Qxa5 {[%clk 0:00:43]}  Kf7 {[%clk 0:00:28]} 33. Rb6 {[%clk 0:00:40]}  Qd7 {[%clk 0:00:20]} 34. Qb4 {[%clk 0:00:37]}  Kg6 {[%clk 0:00:20]} 35. Qb1+ {[%clk 0:00:37]}  Kf7 {[%clk 0:00:19]} 36. Kf1 {[%clk 0:00:36]}  Qc7 {[%clk 0:00:18]} 37. Ke2 {[%clk 0:00:36]}  Qd7 {[%clk 0:00:18]} 38. Kd2 {[%clk 0:00:36]}  Qc7 {[%clk 0:00:19]} 39. Qb4 {[%clk 0:00:34]}  Qd7 {[%clk 0:00:19]} 40. Kc3 {[%clk 0:00:33]}  Kg6 {[%clk 0:00:17]} 41. Kb3 {[%clk 0:00:33]}  Kh6 {[%clk 0:00:13]} 42. Ka4 {[%clk 0:00:29]}  Qc7 {[%clk 0:00:09]} 43. Qb3 {[%clk 0:00:22]}  Qd8 {[%clk 0:00:06]} 44. Ra6 {[%clk 0:00:16]}  Qc7 {[%clk 0:00:05]} 45. Rb6 {[%clk 0:00:12]}  c5 {[%clk 0:00:04]} 46. dxc5 {[%clk 0:00:10]}  Qxc5 {[%clk 0:00:05]} 47. Qb4 {[%clk 0:00:10]}  Qc2+ {[%clk 0:00:05]} 48. Kb5 {[%clk 0:00:08]}  Kg6 {[%clk 0:00:02]} 49. Ka6 {[%clk 0:00:06]}  Qa2+ {[%clk 0:00:02]} 50. Qa5 {[%clk 0:00:06]}  Qe2+ {[%clk 0:00:03]} 51. Ka7 {[%clk 0:00:06]}  Qxf2 {[%clk 0:00:03]} 52. Kxb8 {[%clk 0:00:06]}  Qg3+ {[%clk 0:00:04]} 53. Ka7 {[%clk 0:00:06]}  Qxe3 {[%clk 0:00:04]} 54. b8=Q {[%clk 0:00:06]}  d4 {[%clk 0:00:05]} 55. Qc5 {[%clk 0:00:06]}  Qa3+ {[%clk 0:00:04]} 56. Qxa3 {[%clk 0:00:05]} 1-0


[Site "https://www.chess.com"]

[Event "Titled Tuesday Blitz July 05 Late 2022"]
[White "Averjanov, Alexey"]
[Black "Aloma Vidal, Robert"]
[WhiteFideId "14109867"]
[BlackFideId "2260409"]
[WhiteElo "2683"]
[BlackElo "2435"]
[Result "1-0"]
[Round "09"]
[TimeControl "180+1"]
[Date "2022.07.06"]
[WhiteClock "0:00:34"]
[BlackClock "0:00:04"]

1. d4 {[%clk 0:02:57]}  d5 {[%clk 0:02:56]} 2. c4 {[%clk 0:02:57]}  c6 {[%clk 0:02:56]} 3. e3 {[%clk 0:02:56]}  Nf6 {[%clk 0:02:56]} 4. Bd3 {[%clk 0:02:56]}  dxc4 {[%clk 0:02:50]} 5. Bxc4 {[%clk 0:02:54]}  e5 {[%clk 0:02:50]} 6. Nf3 {[%clk 0:02:54]}  exd4 {[%clk 0:02:39]} 7. O-O {[%clk 0:02:51]}  Bd6 {[%clk 0:02:36]} 8. exd4 {[%clk 0:02:47]}  O-O {[%clk 0:02:36]} 9. Bg5 {[%clk 0:02:47]}  Bg4 {[%clk 0:02:35]} 10. h3 {[%clk 0:02:46]}  Bh5 {[%clk 0:02:35]} 11. g4 {[%clk 0:02:46]}  Bg6 {[%clk 0:02:35]} 12. Ne5 {[%clk 0:02:47]}  Bxe5 {[%clk 0:02:06]} 13. dxe5 {[%clk 0:02:46]}  Qxd1 {[%clk 0:02:07]} 14. Rxd1 {[%clk 0:02:47]}  Ne4 {[%clk 0:02:07]} 15. Be7 {[%clk 0:02:33]}  Re8 {[%clk 0:02:06]} 16. f4 {[%clk 0:02:32]}  b5 {[%clk 0:01:58]} 17. Bb3 {[%clk 0:02:30]}  Na6 {[%clk 0:01:49]} 18. Bh4 {[%clk 0:02:22]}  h5 {[%clk 0:01:48]} 19. f5 {[%clk 0:02:14]}  Bh7 {[%clk 0:01:47]} 20. e6 {[%clk 0:02:02]}  fxe6 {[%clk 0:01:47]} 21. Bxe6+ {[%clk 0:02:02]}  Kh8 {[%clk 0:01:47]} 22. Bd7 {[%clk 0:01:59]}  Nb4 {[%clk 0:01:07]} 23. Bxe8 {[%clk 0:01:54]}  Rxe8 {[%clk 0:01:08]} 24. Nc3 {[%clk 0:01:53]}  Nxc3 {[%clk 0:01:05]} 25. bxc3 {[%clk 0:01:53]}  Nd5 {[%clk 0:01:05]} 26. Re1 {[%clk 0:01:44]}  Rf8 {[%clk 0:01:02]} 27. Rac1 {[%clk 0:01:32]}  Nf4 {[%clk 0:00:46]} 28. Re3 {[%clk 0:01:26]}  Bg8 {[%clk 0:00:37]} 29. Bg5 {[%clk 0:01:16]}  Nd5 {[%clk 0:00:31]} 30. Re5 {[%clk 0:01:15]}  Nb6 {[%clk 0:00:26]} 31. Re7 {[%clk 0:01:07]}  a5 {[%clk 0:00:23]} 32. Rc7 {[%clk 0:00:52]}  Bd5 {[%clk 0:00:20]} 33. Re1 {[%clk 0:00:48]}  Nc4 {[%clk 0:00:10]} 34. Ree7 {[%clk 0:00:46]}  hxg4 {[%clk 0:00:05]} 35. Rxg7 {[%clk 0:00:41]}  Rxf5 {[%clk 0:00:05]} 36. Bh6 {[%clk 0:00:34]}  Bg8 {[%clk 0:00:04]} 37. Rc8 {[%clk 0:00:34]} 1-0


[Site "https://www.chess.com"]

[Event "Titled Tuesday Blitz July 05 Late 2022"]
[White "Bjelobrk, Igor"]
[Black "Bernal Moro, Luis Javier"]
[WhiteFideId "4300726"]
[BlackFideId "2200236"]
[WhiteElo "2335"]
[BlackElo "2376"]
[Result "1-0"]
[Round "09"]
[TimeControl "180+1"]
[Date "2022.07.06"]
[WhiteClock "0:00:20"]
[BlackClock "0:00:16"]

1. d4 {[%clk 0:03:00]}  Nf6 {[%clk 0:02:59]} 2. c4 {[%clk 0:02:59]}  g6 {[%clk 0:03:00]} 3. g3 {[%clk 0:02:58]}  Bg7 {[%clk 0:03:00]} 4. Bg2 {[%clk 0:02:58]}  O-O {[%clk 0:02:59]} 5. Nc3 {[%clk 0:02:57]}  d6 {[%clk 0:03:00]} 6. Nf3 {[%clk 0:02:56]}  c6 {[%clk 0:03:00]} 7. O-O {[%clk 0:02:55]}  Bf5 {[%clk 0:03:00]} 8. Ng5 {[%clk 0:02:40]}  e5 {[%clk 0:02:53]} 9. d5 {[%clk 0:02:38]}  cxd5 {[%clk 0:02:44]} 10. Nxd5 {[%clk 0:02:36]}  Nxd5 {[%clk 0:02:05]} 11. Bxd5 {[%clk 0:02:34]}  Nc6 {[%clk 0:02:04]} 12. Ne4 {[%clk 0:02:31]}  Nb4 {[%clk 0:01:35]} 13. Nxd6 {[%clk 0:02:15]}  Bc2 {[%clk 0:01:29]} 14. Qd2 {[%clk 0:01:55]}  Nxd5 {[%clk 0:01:26]} 15. Qxd5 {[%clk 0:01:53]}  b6 {[%clk 0:01:13]} 16. Bd2 {[%clk 0:01:43]}  Qd7 {[%clk 0:01:03]} 17. Rac1 {[%clk 0:01:37]}  Ba4 {[%clk 0:01:02]} 18. Bb4 {[%clk 0:01:30]}  Bc6 {[%clk 0:01:02]} 19. Qd2 {[%clk 0:01:26]}  Rfd8 {[%clk 0:01:01]} 20. Rfd1 {[%clk 0:01:23]}  Qh3 {[%clk 0:00:59]} 21. f3 {[%clk 0:01:22]}  e4 {[%clk 0:00:59]} 22. Qf4 {[%clk 0:01:16]}  exf3 {[%clk 0:00:56]} 23. exf3 {[%clk 0:01:12]}  f5 {[%clk 0:00:50]} 24. Bc3 {[%clk 0:01:06]}  Qh6 {[%clk 0:00:27]} 25. Bxg7 {[%clk 0:00:58]}  Qxf4 {[%clk 0:00:23]} 26. gxf4 {[%clk 0:00:58]}  Kxg7 {[%clk 0:00:24]} 27. Kf2 {[%clk 0:00:57]}  Rd7 {[%clk 0:00:23]} 28. Rd2 {[%clk 0:00:57]}  Rad8 {[%clk 0:00:22]} 29. Rcd1 {[%clk 0:00:57]}  Kf6 {[%clk 0:00:20]} 30. b4 {[%clk 0:00:42]}  Ke6 {[%clk 0:00:19]} 31. c5 {[%clk 0:00:41]}  bxc5 {[%clk 0:00:19]} 32. bxc5 {[%clk 0:00:41]}  Rb8 {[%clk 0:00:19]} 33. Re1+ {[%clk 0:00:36]}  Kf6 {[%clk 0:00:19]} 34. Re3 {[%clk 0:00:32]}  Re7 {[%clk 0:00:19]} 35. Ra3 {[%clk 0:00:28]}  Rb4 {[%clk 0:00:18]} 36. Kg3 {[%clk 0:00:22]}  Re3 {[%clk 0:00:16]} 37. Rxe3 {[%clk 0:00:20]} 1-0


[Site "https://www.chess.com"]

[Event "Titled Tuesday Blitz July 05 Late 2022"]
[White "Boder, Jan"]
[Black "Domingo Nunez, Alejandro"]
[WhiteFideId "16243226"]
[BlackFideId "22245561"]
[WhiteElo "2064"]
[BlackElo "2222"]
[Result "0-1"]
[Round "09"]
[TimeControl "180+1"]
[Date "2022.07.05"]
[WhiteClock "0:00:01"]
[BlackClock "0:00:44"]

1. b3 {[%clk 0:03:00]}  d6 {[%clk 0:02:59]} 2. Bb2 {[%clk 0:03:01]}  Nd7 {[%clk 0:03:00]} 3. e3 {[%clk 0:03:02]}  Ngf6 {[%clk 0:03:01]} 4. d4 {[%clk 0:03:00]}  g6 {[%clk 0:03:01]} 5. c4 {[%clk 0:02:59]}  Bg7 {[%clk 0:03:02]} 6. Nc3 {[%clk 0:02:59]}  O-O {[%clk 0:03:03]} 7. Nf3 {[%clk 0:03:00]}  c5 {[%clk 0:03:04]} 8. Be2 {[%clk 0:02:59]}  Rb8 {[%clk 0:03:04]} 9. O-O {[%clk 0:02:59]}  a6 {[%clk 0:03:05]} 10. a4 {[%clk 0:02:56]}  b6 {[%clk 0:03:05]} 11. d5 {[%clk 0:02:54]}  Ne8 {[%clk 0:02:57]} 12. Qd2 {[%clk 0:02:51]}  Nc7 {[%clk 0:02:57]} 13. e4 {[%clk 0:02:44]}  Ne5 {[%clk 0:02:57]} 14. Nxe5 {[%clk 0:02:42]}  Bxe5 {[%clk 0:02:58]} 15. f4 {[%clk 0:02:41]}  Bd4+ {[%clk 0:02:58]} 16. Kh1 {[%clk 0:02:42]}  Bd7 {[%clk 0:02:59]} 17. Rf3 {[%clk 0:02:06]}  Bg4 {[%clk 0:02:48]} 18. Rg3 {[%clk 0:01:57]}  Bxe2 {[%clk 0:02:48]} 19. Nxe2 {[%clk 0:01:53]}  Bxb2 {[%clk 0:02:48]} 20. Qxb2 {[%clk 0:01:54]}  b5 {[%clk 0:02:49]} 21. axb5 {[%clk 0:01:54]}  axb5 {[%clk 0:02:49]} 22. Qc3 {[%clk 0:01:48]}  bxc4 {[%clk 0:02:39]} 23. bxc4 {[%clk 0:01:47]}  Qd7 {[%clk 0:02:37]} 24. e5 {[%clk 0:01:43]}  Qf5 {[%clk 0:02:35]} 25. Qd3 {[%clk 0:01:34]}  Qxd3 {[%clk 0:02:30]} 26. Rxd3 {[%clk 0:01:35]}  Rb4 {[%clk 0:02:30]} 27. Rc3 {[%clk 0:01:34]}  Ra8 {[%clk 0:02:26]} 28. Rxa8+ {[%clk 0:01:29]}  Nxa8 {[%clk 0:02:27]} 29. g3 {[%clk 0:01:28]}  Nb6 {[%clk 0:02:27]} 30. Kg1 {[%clk 0:01:16]}  Nxc4 {[%clk 0:02:26]} 31. exd6 {[%clk 0:01:15]}  exd6 {[%clk 0:02:25]} 32. Kf2 {[%clk 0:01:08]}  Nb6 {[%clk 0:02:18]} 33. Rd3 {[%clk 0:01:01]}  c4 {[%clk 0:02:17]} 34. Rd4 {[%clk 0:00:58]}  Rb3 {[%clk 0:02:13]} 35. f5 {[%clk 0:00:51]}  Kg7 {[%clk 0:02:13]} 36. Ke1 {[%clk 0:00:26]}  g5 {[%clk 0:02:04]} 37. Kd2 {[%clk 0:00:23]}  Kf6 {[%clk 0:02:04]} 38. Kc2 {[%clk 0:00:22]}  Rf3 {[%clk 0:01:58]} 39. g4 {[%clk 0:00:20]}  Rf2 {[%clk 0:01:54]} 40. Kd1 {[%clk 0:00:17]}  Rxh2 {[%clk 0:01:50]} 41. Nc3 {[%clk 0:00:16]}  h5 {[%clk 0:01:37]} 42. Re4 {[%clk 0:00:12]}  hxg4 {[%clk 0:01:30]} 43. Re8 {[%clk 0:00:11]}  Kxf5 {[%clk 0:01:27]} 44. Rb8 {[%clk 0:00:11]}  Nd7 {[%clk 0:01:24]} 45. Rd8 {[%clk 0:00:11]}  Ne5 {[%clk 0:01:08]} 46. Rxd6 {[%clk 0:00:11]}  g3 {[%clk 0:01:08]} 47. Rd8 {[%clk 0:00:06]}  g2 {[%clk 0:01:07]} 48. Ne2 {[%clk 0:00:06]}  Rh1+ {[%clk 0:01:07]} 49. Kd2 {[%clk 0:00:06]}  Ra1 {[%clk 0:00:46]} 50. Kc3 {[%clk 0:00:01]}  Re1 {[%clk 0:00:44]} 51. Ng3+ {[%clk 0:00:01]}  Kg4 {[%clk 0:00:44]} 0-1


[Site "https://www.chess.com"]